bitfinex/quotes_SOLUSD_20240714
["timestamp","ask_amount","ask_price","bid_price","bid_amount"]
[1720969761283,1.0178949,145.42,145.38,11.15]
[1720969762982,11.15,145.44,145.39,11.15]
[1720969763184,12.1678949,145.43,145.38,11.15]
[1720969763391,12.1678949,145.43,145.33,20.0]
[1720969763392,57.1678949,145.43,145.34,1.37559269]
[1720969763591,11.15,145.42,145.37,11.15]
[1720969763909,1.0178949,145.41,145.37,11.15]
[1720969764475,16.0467,145.4,145.3,16.4104]
[1720969764675,12.1678949,145.39,145.34,11.15]
[1720969766100,12.1678949,145.39,145.35,11.15]
[1720969766279,12.1678949,145.39,145.3,16.4104]
[1720969766280,1.0178949,145.39,145.3,38.7304]
[1720969767108,1.0178949,145.39,145.31,20.0]
[1720969769984,1.0178949,145.39,145.31,20.56135716]
[1720969770184,46.0178949,145.39,145.31,20.56135716]
[1720969770698,46.0178949,145.39,145.31,20.0]
[1720969771418,46.0178949,145.39,145.28,22.32]
[1720969772410,6.2158,145.38,145.28,22.32]
[1720969772608,6.2158,145.38,145.29,20.0]
[1720969772609,46.0178949,145.37,145.29,20.0]
[1720969772798,46.0178949,145.37,145.25,22.32]
[1720969773610,46.0178949,145.37,145.26,0.52454037]
[1720969773805,46.0178949,145.37,145.26,45.52454037]
[1720969774117,46.0178949,145.37,145.27,1.37631466]
[1720969774293,46.0178949,145.37,145.27,21.37631466]
[1720969775392,46.0178949,145.37,145.27,20.0]
[1720969776404,15.121,145.36,145.27,20.0]
[1720969776603,46.0178949,145.35,145.28,1.37643482]
[1720969777004,46.0178949,145.35,145.27,1.37646501]
[1720969777720,46.0178949,145.35,145.24,20.0]
[1720969777721,6.2158,145.34,145.24,20.0]
[1720969777922,1.0178949,145.33,145.24,20.0]
[1720969778090,1.0178949,145.32,145.24,20.0]
[1720969779216,15.121,145.31,145.24,1.37672459]
[1720969779395,1.0178949,145.3,145.24,1.37672459]
[1720969779598,1.0178949,145.29,145.24,1.37672459]
[1720969780215,1.0178949,145.29,145.23,1.37684864]
[1720969780413,1.0178949,145.29,145.24,1.37684598]
[1720969780615,1.0178949,145.3,145.24,1.37684598]
[1720969780809,1.0178949,145.29,145.24,1.37684598]
[1720969781527,1.0178949,145.29,145.23,20.0]
[1720969781694,1.0178949,145.28,145.21,1.37684984]
[1720969781895,1.0178949,145.3,145.21,1.37684984]
[1720969782194,1.0178949,145.29,145.21,1.37684984]
[1720969783001,6.2158,145.28,145.21,1.37684984]
[1720969783222,1.0178949,145.27,145.21,21.37684984]
[1720969783527,1.0178949,145.27,145.21,20.0]
[1720969784205,1.0178949,145.26,145.21,20.0]
[1720969784415,1.0178949,145.26,145.19,20.0]
[1720969785221,1.0178949,145.27,145.19,20.0]
[1720969785423,1.0178949,145.26,145.19,20.0]
[1720969785717,6.2158,145.28,145.19,20.0]
[1720969785927,6.2158,145.28,145.2,1.37702769]
[1720969786220,60.121,145.27,145.15,8.95092256]
[1720969786725,1.0178949,145.26,145.16,1.37728173]
[1720969787024,1.0178949,145.26,145.15,8.95092256]
[1720969787705,1.0178949,145.26,145.16,20.0]
[1720969788300,11.18,145.25,145.2,11.18]
[1720969788500,1.0178949,145.24,145.2,11.18]
[1720969789014,1.0178949,145.24,145.16,20.0]
[1720969789210,1.0178949,145.24,145.17,1.37733736]
[1720969789211,6.3858,145.23,145.17,1.37733736]
[1720969789401,1.0178949,145.22,145.19,11.18]
[1720969790310,12.1978949,145.22,145.17,11.18]
[1720969790516,12.1978949,145.22,145.18,20.0]
[1720969791001,27.7643,145.21,145.16,11.18]
[1720969791206,1.0178949,145.2,145.16,11.18]
[1720969791916,12.1978949,145.2,145.15,20.13092256]
[1720969793436,12.1978949,145.2,145.15,8.95092256]
[1720969793646,12.1978949,145.2,145.15,20.13092256]
[1720969794213,12.1978949,145.2,145.15,8.95092256]
[1720969794424,12.1978949,145.2,145.15,20.13092256]
[1720969795514,1.0178949,145.2,145.15,20.13092256]
[1720969795717,1.0178949,145.2,145.16,11.18]
[1720969795917,1.0178949,145.2,145.17,11.18]
[1720969796634,1.0178949,145.2,145.15,8.95092256]
[1720969796831,1.0178949,145.2,145.16,11.18]
[1720969797039,1.0178949,145.2,145.17,11.18]
[1720969797416,1.0178949,145.2,145.18,11.18]
[1720969797618,16.5843,145.21,145.19,11.18]
[1720969797821,6.3858,145.23,145.2,11.18]
[1720969798137,7.4036949,145.23,145.2,11.18]
[1720969798317,7.4036949,145.23,145.15,8.95092256]
[1720969798530,7.4036949,145.23,145.2,11.18]
[1720969799137,7.4036949,145.23,145.21,11.18]
[1720969800238,7.4036949,145.23,145.16,20.0]
[1720969800454,6.3858,145.23,145.17,1.37719364]
[1720969800744,6.3858,145.27,145.18,22.36]
[1720969800951,1.0178949,145.26,145.19,20.0]
[1720969801628,1.0178949,145.26,145.17,20.0]
[1720969801830,1.0178949,145.26,145.18,1.37715544]
[1720969802059,1.0178949,145.26,145.18,67.36]
[1720969802264,1.0178949,145.26,145.19,20.0]
[1720969804154,1.0178949,145.26,145.2,1.37719347]
[1720969804857,1.0178949,145.26,145.19,20.0]
[1720969805043,1.0178949,145.26,145.16,20.0]
[1720969805245,1.0178949,145.26,145.16,43.73719941]
[1720969805446,1.0178949,145.26,145.17,45.0]
[1720969805648,1.0178949,145.26,145.18,20.0]
[1720969807131,1.0178949,145.26,145.19,1.37710887]
[1720969807332,1.0178949,145.26,145.18,20.0]
[1720969808370,1.0178949,145.26,145.18,21.37711181]
[1720969808531,46.0178949,145.26,145.15,24.84352256]
[1720969809162,46.0178949,145.26,145.16,1.37744466]
[1720969810057,46.0178949,145.26,145.16,21.37744466]
[1720969811267,46.0178949,145.26,145.16,20.0]
[1720969811555,6.199,145.24,145.15,8.95092256]
[1720969811759,1.0178949,145.23,145.15,8.95092256]
[1720969812133,1.0178949,145.23,145.16,1.37752482]
[1720969812460,1.0178949,145.23,145.15,8.95092256]
[1720969812960,6.199,145.21,145.15,8.95092256]
[1720969813140,1.0178949,145.2,145.15,8.95092256]
[1720969819861,1.0178949,145.2,145.16,1.37728516]
[1720969820261,1.0178949,145.2,145.18,11.19]
[1720969821738,1.0178949,145.2,145.17,11.19]
[1720969821938,7.2168949,145.21,145.17,11.19]
[1720969822143,17.389,145.25,145.2,11.19]
[1720969822359,1.0178949,145.24,145.2,11.19]
[1720969822747,1.0178949,145.24,145.21,11.19]
[1720969822944,1.0178949,145.24,145.22,11.19]
[1720969823152,1.0178949,145.24,145.2,11.19]
[1720969823866,1.0178949,145.24,145.15,8.95092256]
[1720969823867,12.2078949,145.24,145.19,11.19]
[1720969824365,11.19,145.23,145.16,1.3774997]
[1720969824549,1.0178949,145.22,145.18,11.19]
[1720969824872,12.2078949,145.22,145.15,8.95092256]
[1720969825049,11.19,145.2,145.15,20.14092256]
[1720969825242,1.0178949,145.19,145.15,20.14092256]
[1720969825574,1.0178949,145.19,145.15,8.95092256]
[1720969825872,11.19,145.18,145.15,8.95092256]
[1720969826052,1.0178949,145.17,145.15,8.95092256]
[1720969828448,21.2986,145.21,145.15,8.95092256]
[1720969828449,1.0178949,145.2,145.15,8.95092256]
[1720969828649,46.0178949,145.2,145.15,8.95092256]
[1720969832977,22.38,145.18,145.15,8.95092256]
[1720969833175,46.0178949,145.17,145.15,8.95092256]
[1720969833755,56.0178949,145.17,145.15,8.95092256]
[1720969834276,1.0178949,145.17,145.15,8.95092256]
[1720969834677,45.0139,145.19,145.15,8.95092256]
[1720969834678,1.0178949,145.16,145.15,8.95092256]
[1720969834977,1.0178949,145.18,145.15,8.95092256]
[1720969835173,22.6339,145.19,145.15,8.95092256]
[1720969835174,1.0178949,145.17,145.15,8.95092256]
[1720969836078,1.0178949,145.16,145.15,8.95092256]
[1720969836463,1.0178949,145.17,145.15,8.95092256]
[1720969837368,1.0178949,145.18,145.15,8.95092256]
[1720969838291,1.0178949,145.17,145.15,8.95092256]
[1720969839280,1.0178949,145.18,145.15,8.95092256]
[1720969839488,1.0178949,145.17,145.15,8.95092256]
[1720969840587,1.0178949,145.16,145.15,8.95092256]
[1720969840756,45.0,145.18,145.15,8.95092256]
[1720969840953,22.6339,145.19,145.15,8.95092256]
[1720969841387,6.6252,145.19,145.15,8.95092256]
[1720969841761,1.0178949,145.18,145.15,8.95092256]
[1720969842168,1.0178949,145.21,145.15,8.95092256]
[1720969842475,1.0178949,145.2,145.15,8.95092256]
[1720969842879,1.0178949,145.2,145.16,1.25518749]
[1720969843386,1.0178949,145.21,145.16,1.25518749]
[1720969843571,1.0178949,145.2,145.16,1.25518749]
[1720969844180,1.0178949,145.2,145.15,8.95092256]
[1720969848383,11.19,145.17,145.15,8.95092256]
[1720969848685,1.0178949,145.16,145.15,8.95092256]
[1720969849889,11.19,145.17,145.15,8.95092256]
[1720969850073,11.19,145.18,145.15,8.95092256]
[1720969850275,1.0178949,145.2,145.15,8.95092256]
[1720969850468,11.19,145.19,145.15,8.95092256]
[1720969850660,1.0178949,145.18,145.15,8.95092256]
[1720969850866,12.2078949,145.18,145.15,8.95092256]
[1720969851167,1.0178949,145.17,145.15,8.95092256]
[1720969852390,11.19,145.18,145.15,8.95092256]
[1720969853699,1.0178949,145.2,145.16,1.3776907]
[1720969853879,11.19,145.2,145.16,1.3776907]
[1720969854284,1.0178949,145.21,145.15,20.14092256]
[1720969854596,12.2078949,145.2,145.15,20.14092256]
[1720969855594,12.2078949,145.2,145.15,8.95092256]
[1720969855900,12.2078949,145.2,145.16,1.37769351]
[1720969856081,11.19,145.19,145.15,8.95092256]
[1720969856391,1.0178949,145.18,145.15,8.95092256]
[1720969856792,1.0178949,145.18,145.15,10.32867243]
[1720969857002,1.0178949,145.18,145.15,21.51867243]
[1720969857374,1.0178949,145.18,145.15,20.14092256]
[1720969857591,1.0178949,145.18,145.15,8.95092256]
[1720969857894,1.0178949,145.18,145.15,10.32861211]
[1720969858198,1.0178949,145.18,145.15,8.95092256]
[1720969858701,1.0178949,145.22,145.15,20.14092256]
[1720969858876,11.19,145.2,145.15,20.14092256]
[1720969859067,1.0178949,145.21,145.15,8.95092256]
[1720969859286,1.0178949,145.24,145.18,11.19]
[1720969859594,32.6866,145.28,145.18,11.19]
[1720969859595,12.2078949,145.23,145.18,11.19]
[1720969859794,12.2078949,145.23,145.15,8.95092256]
[1720969859795,12.2078949,145.23,145.19,12.56737871]
[1720969860302,1.0178949,145.23,145.19,12.56737871]
[1720969860671,10.0,145.3,145.19,12.56737871]
[1720969860672,1.0178949,145.27,145.2,15.9877]
[1720969860866,11.19,145.24,145.2,15.9877]
[1720969861100,10.0,145.3,145.2,15.9877]
[1720969861101,12.2078949,145.23,145.2,15.9877]
[1720969861475,11.19,145.23,145.2,15.9877]
[1720969861872,11.19,145.23,145.2,17.3649823]
[1720969862208,1.0178949,145.22,145.2,15.9877]
[1720969862695,1.0178949,145.29,145.2,15.9877]
[1720969862898,11.19,145.23,145.2,15.9877]
[1720969863193,1.0178949,145.22,145.15,31.55892256]
[1720969863400,1.0178949,145.22,145.16,31.19]
[1720969863698,1.0178949,145.22,145.16,32.56756303]
[1720969864005,1.0178949,145.24,145.17,11.19]
[1720969864295,1.0178949,145.23,145.16,31.19]
[1720969865167,12.2078949,145.23,145.18,11.19]
[1720969865373,1.0178949,145.23,145.18,11.19]
[1720969865571,1.0178949,145.26,145.2,11.19]
[1720969865773,11.19,145.25,145.2,11.19]
[1720969866078,1.0178949,145.24,145.2,11.19]
[1720969866597,11.19,145.25,145.2,11.19]
[1720969866799,1.0178949,145.27,145.22,11.19]
[1720969867006,11.19,145.27,145.22,11.19]
[1720969867213,12.2078949,145.26,145.21,27.441]
[1720969867380,12.2078949,145.25,145.21,16.251]
[1720969867584,11.19,145.25,145.21,28.81803243]
[1720969867795,11.19,145.26,145.21,28.81803243]
[1720969868094,11.19,145.27,145.21,17.62803243]
[1720969868305,11.19,145.27,145.22,11.19]
[1720969869005,11.19,145.26,145.21,27.441]
[1720969869177,16.5838,145.31,145.22,11.19]
[1720969869178,1.0178949,145.3,145.22,11.19]
[1720969869380,6.97747994,145.29,145.25,11.19]
[1720969869584,12.2078949,145.29,145.24,11.19]
[1720969869891,1.0178949,145.29,145.24,11.19]
[1720969870395,11.19,145.28,145.24,11.19]
[1720969870591,11.19,145.29,145.24,11.19]
[1720969870798,1.0178949,145.28,145.24,11.19]
[1720969871679,1.0178949,145.31,145.24,11.19]
[1720969871879,11.19,145.3,145.25,11.19]
[1720969872088,1.0178949,145.29,145.25,11.19]
[1720969872291,12.2078949,145.29,145.24,11.19]
[1720969872490,6.1477,145.32,145.25,12.56673365]
[1720969872491,11.19,145.3,145.25,12.56673365]
[1720969872818,1.0178949,145.29,145.25,12.56673365]
[1720969872996,1.0178949,145.29,145.25,11.19]
[1720969873319,1.0178949,145.29,145.21,22.5664]
[1720969873493,11.19,145.26,145.21,33.7564]
[1720969874715,11.19,145.27,145.22,12.56699459]
[1720969875020,11.19,145.28,145.23,11.19]
[1720969875186,1.0178949,145.27,145.23,11.19]
[1720969876613,11.19,145.28,145.23,11.19]
[1720969876792,1.0178949,145.27,145.21,16.251]
[1720969876999,11.19,145.24,145.21,16.251]
[1720969877218,1.0178949,145.23,145.17,22.5664]
[1720969877381,1.0178949,145.23,145.19,11.19]
[1720969878514,12.2078949,145.23,145.18,11.19]
[1720969879020,12.2078949,145.23,145.19,11.19]
[1720969879504,1.0178949,145.23,145.19,11.19]
[1720969880821,12.2078949,145.23,145.18,11.19]
[1720969882515,12.2078949,145.23,145.19,1.3773636]
[1720969882895,1.0178949,145.23,145.19,1.3773636]
[1720969883093,11.19,145.23,145.19,1.3773636]
[1720969886219,11.19,145.23,145.18,12.56731302]
[1720969886418,1.0178949,145.22,145.18,11.19]
[1720969886619,12.2078949,145.22,145.17,27.441]
[1720969888521,11.19,145.19,145.13,21.626]
[1720969888821,11.19,145.19,145.15,20.14092256]
[1720969889007,11.19,145.19,145.15,21.51851009]
[1720969889508,16.3148,145.24,145.15,8.95092256]
[1720969889509,12.2078949,145.18,145.15,8.95092256]
[1720969889717,1.0178949,145.17,145.15,8.95092256]
[1720969890717,1.0178949,145.18,145.15,8.95092256]
[1720969892523,1.0178949,145.18,145.15,20.14092256]
[1720969892725,11.19,145.16,145.15,8.95092256]
[1720969893405,1.0178949,145.17,145.15,8.95092256]
[1720969893705,11.19,145.16,145.15,8.95092256]
[1720969895611,56.19,145.16,145.15,8.95092256]
[1720969896934,45.0,145.16,145.15,8.95092256]
[1720969897446,45.0,145.16,145.15,7.50045006]
[1720969897447,72.5048,145.16,145.15,7.50045006]
[1720969897723,56.19,145.16,145.15,7.50045006]
[1720969902932,45.0,145.16,145.15,7.50045006]
[1720969903142,11.19,145.16,145.15,7.50045006]
[1720969904760,56.19,145.16,145.15,7.50045006]
[1720969908716,45.0,145.16,145.15,7.50045006]
[1720969908915,11.19,145.16,145.15,7.50045006]
[1720969912257,56.19,145.16,145.15,7.50045006]
[1720969915928,45.0,145.16,145.15,7.50045006]
[1720969916239,56.19,145.16,145.15,7.50045006]
[1720969917921,45.0,145.16,145.15,7.50045006]
[1720969918124,11.19,145.16,145.15,7.50045006]
[1720969920164,1.0178949,145.17,145.15,7.50045006]
[1720969920639,11.19,145.16,145.15,7.50045006]
[1720969922935,56.19,145.16,145.15,7.50045006]
[1720969927747,45.0,145.16,145.15,7.50045006]
[1720969928050,56.19,145.16,145.15,7.50045006]
[1720969928451,1.0178949,145.17,145.15,7.50045006]
[1720969928651,11.19,145.16,145.15,7.50045006]
[1720969932237,1.0178949,145.17,145.15,7.50045006]
[1720969932445,11.19,145.17,145.15,7.50045006]
[1720969933955,1.0178949,145.16,145.15,7.50045006]
[1720969934161,12.2078949,145.16,145.15,7.50045006]
[1720969934534,57.2078949,145.16,145.15,7.50045006]
[1720969935549,63.17214606,145.16,145.15,7.50045006]
[1720969936842,57.2078949,145.16,145.15,7.50045006]
[1720969937036,63.17227163,145.16,145.15,7.50045006]
[1720969938049,73.17227163,145.16,145.11,0.2]
[1720969938250,11.19,145.12,145.11,0.2]
[1720969938565,56.19,145.12,145.11,0.2]
[1720969939667,11.19,145.12,145.11,0.2]
[1720969940346,56.19,145.12,145.11,0.2]
[1720969941472,77.38,145.12,145.11,0.2]
[1720969941644,83.34571531,145.12,145.05,17.2865224]
[1720969941842,11.19,145.06,145.05,17.2865224]
[1720969942251,11.19,145.07,145.05,17.2865224]
[1720969942457,12.2078949,145.06,145.05,17.2865224]
[1720969942648,1.0178949,145.1,145.05,17.2865224]
[1720969942970,11.19,145.07,145.05,17.2865224]
[1720969943640,11.19,145.08,145.05,17.2865224]
[1720969943842,1.0178949,145.07,145.05,17.2865224]
[1720969944666,1.0178949,145.1,145.06,1.37878482]
[1720969944867,11.19,145.09,145.05,29.85509752]
[1720969945255,1.0178949,145.1,145.06,11.19]
[1720969945456,12.2078949,145.1,145.06,11.19]
[1720969945766,12.2078949,145.1,145.05,29.85509752]
[1720969945940,12.2078949,145.1,145.05,28.4765224]
[1720969946341,1.0178949,145.1,145.05,17.2865224]
[1720969946551,11.19,145.07,145.05,17.2865224]
[1720969947069,11.19,145.08,145.05,17.2865224]
[1720969947442,12.2078949,145.1,145.06,1.37865373]
[1720969947646,1.0178949,145.09,145.05,28.4765224]
[1720969948454,12.2078949,145.09,145.05,17.2865224]
[1720969949175,11.19,145.09,145.05,18.66517057]
[1720969949679,11.19,145.1,145.05,29.85517057]
[1720969949856,11.19,145.08,145.05,17.2865224]
[1720969950051,1.0178949,145.07,145.05,17.2865224]
[1720969950252,12.2078949,145.07,145.05,17.2865224]
[1720969950451,1.0178949,145.06,145.05,17.2865224]
[1720969950667,11.19,145.07,145.05,17.2865224]
[1720969951284,11.19,145.06,145.05,17.2865224]
[1720969953263,1.0178949,145.1,145.05,17.2865224]
[1720969953580,11.19,145.07,145.05,17.2865224]
[1720969953772,12.2078949,145.06,145.05,0.8517224]
[1720969954078,11.19,145.06,145.05,0.8517224]
[1720969954662,11.19,145.07,145.05,0.8517224]
[1720969954888,1.0178949,145.09,145.05,0.8517224]
[1720969955078,12.2078949,145.09,145.05,0.8517224]
[1720969955392,1.0178949,145.09,145.05,13.42052115]
[1720969955882,12.2078949,145.09,145.05,0.8517224]
[1720969956087,1.0178949,145.13,145.05,0.8517224]
[1720969956256,11.19,145.09,145.05,0.8517224]
[1720969956456,1.0178949,145.08,145.05,0.8517224]
[1720969957685,1.0178949,145.13,145.05,0.8517224]
[1720969957893,11.19,145.1,145.05,12.0417224]
[1720969958068,1.0178949,145.09,145.05,12.0417224]
[1720969958790,45.0,145.13,145.06,15.1721]
[1720969958791,1.0178949,145.12,145.06,15.1721]
[1720969958988,1.0178949,145.12,145.07,11.19]
[1720969959280,12.2078949,145.12,145.07,11.19]
[1720969960690,11.19,145.11,145.07,11.19]
[1720969960980,1.0178949,145.1,145.07,11.19]
[1720969961458,1.0178949,145.1,145.06,27.74079837]
[1720969962078,3.5590734,145.17,145.09,11.19]
[1720969962285,1.0178949,145.17,145.11,11.19]
[1720969962459,11.19,145.16,145.11,11.19]
[1720969962659,1.0178949,145.15,145.11,26.3621]
[1720969963070,1.0178949,145.14,145.11,15.1721]
[1720969963264,1.0178949,145.14,145.11,26.3621]
[1720969963476,1.0178949,145.15,145.11,26.3621]
[1720969963660,11.19,145.16,145.12,12.56807601]
[1720969963861,1.0178949,145.15,145.12,11.19]
[1720969964163,1.0178949,145.15,145.11,26.3621]
[1720969964358,12.2078949,145.15,145.11,26.3621]
[1720969965087,1.0178949,145.14,145.11,15.1721]
[1720969965398,11.19,145.14,145.11,15.1721]
[1720969965568,1.0178949,145.13,145.11,15.1721]
[1720969967161,1.0178949,145.17,145.11,16.55034241]
[1720969967369,1.0178949,145.21,145.12,11.19]
[1720969967572,18.87767313,145.22,145.14,11.19]
[1720969967573,11.19,145.18,145.14,11.19]
[1720969967774,1.0178949,145.17,145.14,11.19]
[1720969967980,1.0178949,145.18,145.14,11.19]
[1720969968191,1.0178949,145.21,145.16,11.19]
[1720969968380,1.0178949,145.2,145.15,1.37776748]
[1720969968693,1.0178949,145.23,145.15,1.37776748]
[1720969969178,1.0178949,145.23,145.16,1.37767077]
[1720969969487,1.0178949,145.23,145.14,1.37758676]
[1720969969667,1.0178949,145.23,145.13,6.3155]
[1720969970571,46.0178949,145.23,145.14,1.37767291]
[1720969971178,1.0178949,145.23,145.13,6.3155]
[1720969971382,1.0178949,145.23,145.14,21.37753938]
[1720969972596,1.0178949,145.23,145.16,22.38]
[1720969972775,1.0178949,145.26,145.17,21.37728442]
[1720969972986,1.0178949,145.26,145.18,1.37728442]
[1720969973872,1.0178949,145.29,145.19,22.7953]
[1720969974194,1.0178949,145.29,145.2,1.37714828]
[1720969974392,1.0178949,145.29,145.21,1.37683613]
[1720969975098,1.0178949,145.28,145.21,1.37683613]
[1720969975296,1.0178949,145.3,145.2,20.0]
[1720969975516,1.0178949,145.29,145.21,1.37685598]
[1720969975803,1.0178949,145.28,145.21,1.37685598]
[1720969975969,11.0178949,145.32,145.21,1.37689813]
[1720969976366,45.0,145.31,145.21,1.37689813]
[1720969976675,1.0178949,145.3,145.21,1.37689813]
[1720969976874,1.0178949,145.29,145.21,1.37689813]
[1720969977697,1.0178949,145.29,145.2,42.38]
[1720969977903,1.0178949,145.29,145.21,1.37690733]
[1720969978569,1.0178949,145.29,145.21,1.37690522]
[1720969979287,1.0178949,145.28,145.21,1.37690522]
[1720969979488,1.0178949,145.3,145.21,1.37690522]
[1720969979695,1.0178949,145.29,145.21,1.37690522]
[1720969980595,1.0178949,145.29,145.22,22.38]
[1720969980784,1.0178949,145.29,145.23,21.37670613]
[1720969980983,1.0178949,145.29,145.24,1.37671154]
[1720969981392,1.0178949,145.3,145.24,1.37671154]
[1720969981580,24.17551675,145.34,145.24,1.37671154]
[1720969981581,1.0178949,145.33,145.25,16.4798]
[1720969981781,1.0178949,145.32,145.25,16.4798]
[1720969982000,1.0178949,145.32,145.26,1.37646131]
[1720969982319,1.0178949,145.32,145.25,16.4798]
[1720969982808,1.0178949,145.33,145.26,1.37665624]
[1720969983005,1.0178949,145.32,145.25,16.4798]
[1720969983982,1.0178949,145.31,145.23,20.0]
[1720969984189,21.4632,145.34,145.23,20.0]
[1720969984190,46.0178949,145.33,145.23,20.0]
[1720969984512,1.0178949,145.32,145.22,16.4798]
[1720969986108,1.0178949,145.32,145.23,20.0]
[1720969986918,1.0178949,145.32,145.24,1.37687102]
[1720969987488,1.0178949,145.32,145.24,1.37686811]
[1720969988116,1.0178949,145.32,145.24,23.75686811]
[1720969988414,1.0178949,145.33,145.25,20.0]
[1720969988590,1.0178949,145.32,145.26,1.37645886]
[1720969988793,1.0178949,145.33,145.27,1.37641709]
[1720969989105,1.0178949,145.33,145.27,21.37641709]
[1720969989595,1.0178949,145.37,145.28,15.9932]
[1720969989797,1.0178949,145.37,145.29,1.37634285]
[1720969990000,1.0178949,145.37,145.3,1.3763429]
[1720969990394,1.0178949,145.37,145.31,1.37601341]
[1720969990600,1.2178949,145.39,145.31,1.37601341]
[1720969990799,1.2178949,145.39,145.29,20.0]
[1720969991196,1.2178949,145.39,145.3,1.37614507]
[1720969991897,1.2178949,145.39,145.3,23.75614507]
[1720969992198,0.2,145.39,145.32,22.38]
[1720969992397,1.2178949,145.39,145.33,1.37586102]
[1720969992610,1.2178949,145.39,145.33,21.37586102]
[1720969992823,1.2178949,145.39,145.33,20.0]
[1720969993506,1.2178949,145.39,145.3,20.0]
[1720969994326,1.2178949,145.39,145.29,22.38]
[1720969995111,1.2178949,145.39,145.3,1.37601938]
[1720969996298,1.2178949,145.39,145.29,22.38]
[1720969996493,1.2178949,145.39,145.3,20.0]
[1720969996696,1.2178949,145.39,145.32,22.38]
[1720969996929,0.2,145.39,145.33,21.37579832]
[1720969997132,1.2178949,145.39,145.33,20.0]
[1720969997427,0.2,145.39,145.34,1.37582442]
[1720969997626,1.2178949,145.39,145.33,20.0]
[1720969998009,0.2,145.39,145.34,1.37576601]
[1720969998417,0.2,145.39,145.34,17.36896601]
[1720969998599,0.2,145.39,145.34,39.74896601]
[1720969998796,0.2,145.39,145.35,20.0]
[1720969999001,0.2,145.39,145.36,1.37561633]
[1720970000522,0.2,145.39,145.35,20.0]
[1720970000931,0.2,145.39,145.36,1.37555835]
[1720970001228,0.2,145.39,145.36,1.37563405]
[1720970001620,0.2,145.39,145.35,20.0]
[1720970006034,0.2,145.39,145.34,15.9932]
[1720970006335,0.2,145.39,145.31,22.38]
[1720970006543,0.2,145.39,145.32,1.37586255]
[1720970006718,1.2178949,145.39,145.32,1.37586255]
[1720970007311,1.2178949,145.39,145.31,22.38]
[1720970008015,1.2178949,145.39,145.32,21.37579826]
[1720970014119,0.2,145.39,145.32,21.37579826]
[1720970014313,1.2178949,145.39,145.32,21.37579826]
[1720970014921,0.2,145.39,145.33,22.38]
[1720970015121,0.2,145.39,145.34,1.37560982]
[1720970015322,0.2,145.39,145.34,21.37560982]
[1720970016441,0.2,145.39,145.35,22.38]
[1720970016651,0.2,145.39,145.36,21.37542373]
[1720970020045,0.2,145.39,145.37,22.38]
[1720970020248,0.2,145.39,145.38,21.37517167]
[1720970021035,0.2,145.39,145.38,20.0]
[1720970022233,0.2,145.39,145.38,21.37539594]
[1720970023342,0.2,145.39,145.35,38.9844]
[1720970023343,0.2,145.39,145.36,21.37536536]
[1720970023853,0.2,145.39,145.36,20.0]
[1720970024146,0.2,145.39,145.37,1.37542192]
[1720970024446,0.2,145.39,145.35,22.38]
[1720970024945,0.2,145.39,145.36,1.37564615]
[1720970025130,0.2,145.39,145.33,1.37555919]
[1720970025743,0.2,145.39,145.33,21.37555919]
[1720970026129,0.2,145.39,145.35,22.38]
[1720970026447,0.2,145.39,145.36,20.0]
[1720970026634,0.2,145.39,145.37,1.37548334]
[1720970027226,0.2,145.39,145.36,20.0]
[1720970027956,0.2,145.39,145.36,21.3754854]
[1720970030245,0.2,145.39,145.37,22.38]
[1720970030435,0.2,145.39,145.38,21.37519539]
[1720970035050,0.2,145.39,145.38,21.37512507]
[1720970036144,0.2,145.39,145.38,20.0]
[1720970037544,0.2,145.39,145.35,43.75533853]
[1720970037730,0.2,145.39,145.37,22.38]
[1720970037933,0.2,145.39,145.38,21.37524446]
[1720970038843,0.2,145.39,145.38,20.0]
[1720970039040,0.2,145.39,145.38,21.37522832]
[1720970042338,0.2,145.39,145.38,77.12522832]
[1720970043173,0.2,145.39,145.38,20.0]